[Event "Polish University-ch Teams 2024"]
[Site "Lublin"]
[Date "2024.02.25"]
[Round "6.20"]
[White "Jarocka, Liwia"]
[Black "Redzisz, Michal"]
[Result "0-1"]
[ECO "C42"]
[WhiteElo "2199"]
[BlackElo "2229"]
[Annotator "TA"]
[PlyCount "78"]
[EventDate "2024.02.22"]
[EventType "team-tourn"]
[EventCountry "POL"]
[SourceTitle "playchess.com"]
[Source "ChessBase"]
[SourceQuality "1"]
[TimeControl "900+5"]

{[%evp 9,78,9,19,0,6,20,29,34,28,44,43,19,48,5,16,12,14,-13,0,-25,7,7,21,10,40,41,60,70,60,60,71,49,47,52,58,31,23,26,30,46,149,-183,-183,-192,-163,-174,-134,-139,0,-172,0,-156,-145,-149,-8,-320,-320,-573,-423,-860,-854,-812,-722,-710,-491,-487,-500,-29982,-29983,-29973,-1577]} 1. e4 {[%emt 0:01:14]} e5 {[%emt 0:00:13]} 2. Nf3 {[%emt 0:00:01]} Nf6 {[%emt 0:00:03]} 3. Nxe5 {[%emt 0:00:01]} d6 {[%emt 0:00:04]} 4. Nd3 {[%emt 0:00:01]} Nxe4 {[%emt 0:00:06]} 5. Nf4 {[%emt 0:00:02]} Nc6 {[%emt 0:00:05]} 6. d4 {[%emt 0:00:22]} d5 {[%emt 0:01:52]} 7. c3 {[%emt 0:00:16]} Be7 {[%emt 0:00:45]} 8. Bd3 {[%emt 0:00:06] Weiß hat minimalen Vorteil.} O-O {[%emt 0:00:35]} 9. O-O {[%emt 0:00:02]} Nf6 {[%emt 0:03:34]} 10. h3 {[%emt 0:00:51]} Re8 {[%emt 0:00:30]} 11. Re1 {[%emt 0:02:19]} Bd6 {[%emt 0:00:30]} 12. Rxe8+ {[%emt 0:00:02]} Qxe8 {[%emt 0:00:03]} 13. Be3 {[%emt 0:00:03]} Ne7 $1 {[%emt 0:00:35]} 14. Qc2 {[%emt 0:00:57]} Ng6 {[%emt 0:01:09]} 15. Nxg6 hxg6 {[%emt 0:00:03]} 16. Nd2 {[%emt 0:00:19]} Nh5 {[%emt 0:01:14]} 17. Nf3 {[%emt 0:00:02]} Nf4 {[%emt 0:00:30]} 18. Bxf4 {[%emt 0:00:02]} Bxf4 {[%emt 0:04:44]} 19. Re1 {[%emt 0:00:02]} Qf8 {[%emt 0:00:00]} 20. Qb3 {[%emt 0:01:01]} (20. c4 $5) 20... c6 {[%emt 0:00:00]} 21. c4 {[%emt 0:00:03]} Be6 {[%emt 0:00:00]} 22. Qxb7 {[%emt 0:00:43]} dxc4 {[%emt 0:00:00] [#]} 23. Bxg6 {[%emt 0:00:31][%cal Oe1e6] Droht Rxe6! und aus.} Rb8 {[%emt 0:00:00]} 24. Qxc6 {[%emt 0:00:08] Zielt auf Rxe6 ab.} Rb6 {[%emt 0:00:00]} (24... Qd6 $1 $14 25. Qxd6 Bxd6) 25. Qa4 $2 {[%emt 0:01:50][%mdl 8192]} (25. Bh7+ $1 $16 {ist nötig, um Vorteil zu sichern.} Kxh7 26. Qe4+ Kg8 27. Qxf4) 25... fxg6 $19 {[%emt 0:00:00]} 26. d5 {[%emt 0:00:01]} Bf7 {[%emt 0:00:14]} (26... Bxd5 $2 27. Re8 $18 (27. Qxa7 $2 Qf6 $19) (27. Qxa7 $2 Qf6 $19)) 27. Qxc4 {[%emt 0:00:01]} Qb4 {[%emt 0:00:08]} 28. Qc8+ {[%emt 0:00:22]} Qf8 {[%emt 0:00:10]} 29. Qc4 {[%emt 0:00:47]} Qb4 {[%emt 0:00:01]} 30. Qc8+ {[%emt 0:00:00]} Kh7 {[%emt 0:00:00]} 31. Qg4 {[%emt 0:00:16] [#]} Bh6 {[%emt 0:00:22] Ein starkes Läuferpaar.} (31... Bxd5 $6 32. Qh4+ Bh6 33. Ng5+ Kh8 34. Re8+ Bg8 35. Nf7+ Kh7 36. Ng5+ Kh8 37. Nf7+ Kh7 38. Ng5+ Kh8 $11) (31... Qd6 $1 $17 32. Qh4+ Kg8) 32. Re4 $2 {[%emt 0:00:20][%mdl 8192]} (32. Qxb4 $1 $11 {und Weiss steht sicher.} Rxb4 33. d6 Rxb2 34. d7) 32... Qxb2 {[%emt 0:00:02]} 33. Ne5 $2 {[%emt 0:01:00]} (33. Rd4 {war einen Versuch wert.} Qc1+ (33... Qxa2 $2 34. d6 $19) 34. Kh2) 33... Rf6 {[%emt 0:00:08]} 34. Qh4 {[%emt 0:03:38]} (34. Qe2 $142 Qxe2 35. Rxe2) 34... Bxd5 {[%emt 0:00:06]} 35. Re1 {[%emt 0:00:21]} Re6 {[%emt 0:00:06]} 36. Qg3 {[%emt 0:00:12]} Qd2 {[%emt 0:00:05]} 37. Rb1 {[%emt 0:00:07]} Qxa2 {[%emt 0:00:03]} 38. Rb8 {[%emt 0:00:02]} (38. Rf1 $19) 38... Qa1+ {[%emt 0:00:02]} 39. Kh2 {[%emt 0:00:01]} Qxe5 {[%emt 0:00:02] Gewichteter Fehlerwert: Weiß=0.72/Schwarz=0.52.  Verlustzug:     	Weiß=2     	---        Fehler:       	Weiß=3     	Schwarz=2     Ungenau:       	Weiß=3     	Schwarz=3     OK:         	Weiß=15    	Schwarz=5     Bester:       	Weiß=2     	Schwarz=6     Stark:        	---       	Schwarz=1} (39... Rxe5 $142 40. Rb1 Qxb1 41. Qxe5 Qe4 42. Qxe4 Bxe4 43. Kg3 a5 44. f3 Bc2 45. f4 a4 46. Kf2 a3 (46... Bxf4 {führt zum Matt.} 47. h4 Be5 48. Ke3 Bc3 49. g4 a3 50. g5 a2 51. h5 a1=Q 52. hxg6+ Kxg6 53. Kf2 Bd4+ 54. Kg2 Qg1+ 55. Kf3 Qf2+ 56. Kg4 Bf5#) 47. Ke3 a2 48. Kd2 Bf5 (48... a1=B $2 49. Kxc2 Bxf4 50. Kd3 $19) 49. Ke3 a1=Q (49... a1=B $2 50. h4 $19) 50. g4 Qe5+ 51. Kf2 Qxf4+ (51... Bxf4 52. gxf5 Qe3+ 53. Kf1 gxf5 54. h4 Bg3 55. Kg2 Qf2+ 56. Kh3 Qh2#) 52. Ke2 Qe3+ 53. Kf1 Qf3+ (53... Qxh3+ {wird mattgesetzt.} 54. Kf2 Bxg4 55. Ke1 Qe3+ 56. Kf1 Bh3#) 54. Kg1 Qg3+ 55. Kh1 Be4#) 0-1

[Event "Polish University-ch Teams 2024"]
[Site "Lublin"]
[Date "2024.02.25"]
[Round "6.21"]
[White "Galuszka, Tomasz"]
[Black "Golecki, Jan"]
[Result "1/2-1/2"]
[ECO "C71"]
[WhiteElo "2181"]
[BlackElo "2185"]
[Annotator "RC"]
[PlyCount "118"]
[EventDate "2024.02.22"]
[EventType "team-tourn"]
[EventCountry "POL"]
[SourceTitle "playchess.com"]
[Source "ChessBase"]
[SourceQuality "1"]
[TimeControl "900+5"]

1. e4 {[%emt 0:00:02]} e5 {[%emt 0:01:31]} 2. Nf3 {[%emt 0:00:03]} Nc6 {[%emt 0:00:02]} 3. Bb5 {[%emt 0:00:02]} a6 {[%emt 0:00:00]} 4. Ba4 {[%emt 0:00:10]} d6 {[%emt 0:00:01]} 5. Nc3 {[%emt 0:00:21]} Bd7 {[%emt 0:02:06]} 6. h3 {[%emt 0:00:41]} Nf6 {[%emt 0:01:36]} 7. O-O {[%emt 0:01:06]} g6 {[%emt 0:01:35]} 8. d3 {[%emt 0:02:51]} Bg7 {[%emt 0:00:04]} 9. Ne2 {[%emt 0:00:02]} O-O {[%emt 0:00:07]} 10. c3 {[%emt 0:00:02]} Ne7 {[%emt 0:00:07]} 11. Bb3 {[%emt 0:00:25]} h6 {[%emt 0:00:01]} 12. Ng3 {[%emt 0:00:07]} g5 {[%emt 0:00:23]} 13. d4 {[%emt 0:00:42]} Ng6 {[%emt 0:00:56]} 14. dxe5 {[%emt 0:00:19]} dxe5 {[%emt 0:00:02]} 15. Nf5 {[%emt 0:02:20]} Nxe4 {[%emt 0:00:28]} 16. Nxg7 {[%emt 0:00:02]} Kxg7 {[%emt 0:00:01]} 17. Nxe5 {[%emt 0:01:41]} Nxe5 {[%emt 0:00:01]} 18. Qd4 {[%emt 0:00:01]} Qf6 {[%emt 0:00:36]} 19. Qxe4 {[%emt 0:00:02]} Bc6 {[%emt 0:00:01]} 20. Qe3 {[%emt 0:00:11]} Rfe8 {[%emt 0:00:08]} 21. Qg3 {[%emt 0:00:04]} Ng6 {[%emt 0:01:24]} 22. Be3 {[%emt 0:00:24]} Rad8 {[%emt 0:00:05]} 23. Rae1 {[%emt 0:02:40]} Nf4 {[%emt 0:02:49]} 24. Bxf4 {[%emt 0:01:24]} Qxf4 {[%emt 0:00:02]} 25. Qxf4 {[%emt 0:00:08]} gxf4 {[%emt 0:00:01]} 26. f3 {[%emt 0:00:00]} Kf6 {[%emt 0:00:18]} 27. Rxe8 {[%emt 0:00:09]} Rxe8 {[%emt 0:00:01]} 28. Kf2 {[%emt 0:00:02]} Bb5 {[%emt 0:00:59]} 29. c4 {[%emt 0:00:07]} Bc6 {[%emt 0:00:22]} 30. Rd1 {[%emt 0:00:01]} Ke5 {[%emt 0:00:19]} 31. Bc2 {[%emt 0:00:12]} a5 {[%emt 0:00:13]} 32. a3 {[%emt 0:00:41]} Re6 {[%emt 0:00:31]} 33. c5 {[%emt 0:00:20]} Bd5 {[%emt 0:00:14]} 34. Rd2 {[%emt 0:00:25]} h5 {[%emt 0:00:24]} 35. Bd1 {[%emt 0:00:01]} h4 {[%emt 0:00:01]} 36. Be2 {[%emt 0:00:02]} b6 {[%emt 0:00:16]} 37. Rc2 {[%emt 0:00:04]} Rc6 {[%emt 0:00:04]} 38. b4 {[%emt 0:00:01]} axb4 {[%emt 0:00:01]} 39. axb4 {[%emt 0:00:01]} bxc5 {[%emt 0:00:02]} 40. b5 {[%emt 0:00:01]} Rb6 {[%emt 0:00:15]} 41. Rxc5 {[%emt 0:00:02]} Kd6 {[%emt 0:00:01]} 42. Rc2 {[%emt 0:00:05]} Rb8 {[%emt 0:00:01]} 43. Rd2 {[%emt 0:00:03]} Kc5 {[%emt 0:00:03]} 44. Rc2+ {[%emt 0:00:01]} Kd4 {[%emt 0:00:01]} 45. Rd2+ {[%emt 0:00:01]} Ke5 {[%emt 0:00:01]} 46. Rc2 {[%emt 0:00:01]} Rb7 {[%emt 0:00:06]} 47. Rc5 {[%emt 0:00:02]} Kd6 {[%emt 0:00:01]} 48. Rc2 {[%emt 0:00:00]} Ra7 {[%emt 0:00:16]} 49. Rd2 {[%emt 0:00:02]} Ke5 {[%emt 0:00:01]} 50. Rc2 {[%emt 0:00:02]} f6 {[%emt 0:00:02]} 51. Rd2 {[%emt 0:00:13]} Ra5 {[%emt 0:00:06]} 52. Rc2 {[%emt 0:00:02]} Kd6 {[%emt 0:00:01]} 53. Rd2 {[%emt 0:00:03]} Ra4 {[%emt 0:00:01]} 54. Rc2 {[%emt 0:00:02]} Rb4 {[%emt 0:00:01]} 55. Rd2 {[%emt 0:00:09]} Kc5 {[%emt 0:00:12]} 56. Rc2+ {[%emt 0:00:02]} Kb6 {[%emt 0:00:01]} 57. Bf1 {[%emt 0:00:08]} Rb1 {[%emt 0:00:12]} 58. Be2 {[%emt 0:00:03]} Rb4 {[%emt 0:00:06]} 59. Bf1 {[%emt 0:01:02]} Rb1 {[%emt 0:00:16]} 1/2-1/2

[Event "Polish University-ch Teams 2024"]
[Site "Lublin"]
[Date "2024.02.25"]
[Round "6.22"]
[White "Leskiewicz, Ignacy"]
[Black "Skurniak, Szymon"]
[Result "1-0"]
[ECO "E91"]
[WhiteElo "2180"]
[BlackElo "2096"]
[Annotator "RC"]
[PlyCount "129"]
[EventDate "2024.02.22"]
[EventType "team-tourn"]
[EventCountry "POL"]
[SourceTitle "playchess.com"]
[Source "ChessBase"]
[SourceQuality "1"]
[TimeControl "900+5"]

1. Nf3 {[%emt 0:02:05]} d6 {[%emt 0:00:46]} 2. d4 {[%emt 0:00:20]} Nf6 {[%emt 0:00:01]} 3. c4 {[%emt 0:00:03]} g6 {[%emt 0:00:20]} 4. Nc3 {[%emt 0:00:01]} Bg7 {[%emt 0:00:01]} 5. e4 {[%emt 0:00:13]} O-O {[%emt 0:00:03]} 6. Be2 {[%emt 0:00:07]} c5 {[%emt 0:00:01]} 7. O-O {[%emt 0:00:27]} Bg4 {[%emt 0:00:16]} 8. dxc5 {[%emt 0:01:34]} dxc5 {[%emt 0:00:08]} 9. Be3 {[%emt 0:00:01]} Qc8 {[%emt 0:04:46]} 10. Ne1 {[%emt 0:05:04]} Rd8 {[%emt 0:00:29]} 11. Nd5 {[%emt 0:00:42]} Nxd5 {[%emt 0:03:20]} 12. cxd5 {[%emt 0:00:04]} Bxe2 {[%emt 0:00:18]} 13. Qxe2 {[%emt 0:00:01]} b6 {[%emt 0:05:41]} 14. Rc1 {[%emt 0:00:11]} Qa6 {[%emt 0:00:00]} 15. Qxa6 {[%emt 0:03:13]} Nxa6 {[%emt 0:00:00]} 16. b3 {[%emt 0:00:23]} Nb4 {[%emt 0:00:00]} 17. a3 {[%emt 0:00:28]} Na2 {[%emt 0:00:00]} 18. Rc2 {[%emt 0:00:06]} Nc3 {[%emt 0:00:00]} 19. f3 {[%emt 0:00:28]} e6 {[%emt 0:00:00]} 20. Bg5 {[%emt 0:00:41]} Bd4+ {[%emt 0:00:00]} 21. Kh1 {[%emt 0:00:01]} f6 {[%emt 0:00:00]} 22. Bd2 {[%emt 0:00:02]} Nb1 {[%emt 0:00:00]} 23. dxe6 {[%emt 0:00:12]} Nxa3 {[%emt 0:00:00]} 24. Ra2 {[%emt 0:00:01]} Nb1 {[%emt 0:00:00]} 25. Nd3 {[%emt 0:00:20]} Nxd2 {[%emt 0:00:00]} 26. Rxd2 {[%emt 0:00:01]} Be3 {[%emt 0:00:00]} 27. Rdd1 {[%emt 0:00:02]} Rd6 {[%emt 0:00:00]} 28. Rfe1 {[%emt 0:00:01]} Bh6 {[%emt 0:00:00]} 29. Nf2 {[%emt 0:00:25]} Rxe6 {[%emt 0:00:00]} 30. Rd7 {[%emt 0:00:01]} Be3 {[%emt 0:00:00]} 31. Rxe3 {[%emt 0:00:05]} a5 {[%emt 0:00:00]} 32. h4 {[%emt 0:00:06]} a4 {[%emt 0:00:00]} 33. bxa4 {[%emt 0:00:01]} Rxa4 {[%emt 0:00:00]} 34. Ng4 {[%emt 0:00:07]} f5 {[%emt 0:00:00]} 35. exf5 {[%emt 0:00:08]} Rxe3 {[%emt 0:00:00]} 36. Nxe3 {[%emt 0:00:02]} Rxh4+ {[%emt 0:00:00]} 37. Kg1 {[%emt 0:00:01]} gxf5 {[%emt 0:00:10]} 38. Nxf5 {[%emt 0:00:04]} Rc4 {[%emt 0:01:15]} 39. Rb7 {[%emt 0:00:08]} Rc1+ {[%emt 0:00:02]} 40. Kf2 {[%emt 0:00:03]} Rb1 {[%emt 0:00:01]} 41. Ke3 {[%emt 0:00:10]} b5 {[%emt 0:00:01]} 42. Kf4 {[%emt 0:00:08]} h5 {[%emt 0:00:06]} 43. Kg5 {[%emt 0:00:02]} Rg1 {[%emt 0:00:00]} 44. Rxb5 {[%emt 0:00:09]} Rxg2+ {[%emt 0:00:02]} 45. Kxh5 {[%emt 0:00:01]} c4 {[%emt 0:00:00]} 46. Rc5 {[%emt 0:00:02]} Rf2 {[%emt 0:00:02]} 47. Kg4 {[%emt 0:00:01]} Rg2+ {[%emt 0:00:01]} 48. Ng3 {[%emt 0:00:01]} Rc2 {[%emt 0:00:01]} 49. Rc7 {[%emt 0:00:06]} Kf8 {[%emt 0:00:01]} 50. Ne4 {[%emt 0:00:04]} Ke8 {[%emt 0:00:01]} 51. Kf4 {[%emt 0:00:01]} Kd8 {[%emt 0:00:00]} 52. Rc5 {[%emt 0:00:01]} Kd7 {[%emt 0:00:01]} 53. Ke3 {[%emt 0:00:08]} Rc1 {[%emt 0:00:01]} 54. Kd4 {[%emt 0:00:08]} Rf1 {[%emt 0:00:01]} 55. Rf5 {[%emt 0:00:05]} Rc1 {[%emt 0:00:01]} 56. Nc3 {[%emt 0:00:09]} Ke6 {[%emt 0:01:48]} 57. Rf4 {[%emt 0:00:07]} Rf1 {[%emt 0:00:00]} 58. Kxc4 {[%emt 0:00:12]} Ke5 {[%emt 0:00:00]} 59. Rf8 {[%emt 0:00:01]} Rc1 {[%emt 0:00:00]} 60. Kd3 {[%emt 0:00:03]} Ra1 {[%emt 0:00:00]} 61. Ke3 {[%emt 0:00:04]} Ra3 {[%emt 0:00:00]} 62. f4+ {[%emt 0:00:03]} Ke6 {[%emt 0:00:00]} 63. Rc8 {[%emt 0:00:02]} Kd7 {[%emt 0:00:00]} 64. Rc4 {[%emt 0:00:01]} Kd6 {[%emt 0:00:00]} 65. Ke4 {[%emt 0:00:02]} 1-0

[Event "Polish University-ch Teams 2024"]
[Site "Lublin"]
[Date "2024.02.25"]
[Round "6.23"]
[White "Makhynia, Kostiantyn"]
[Black "Pawletko, Szymon"]
[Result "1-0"]
[ECO "D11"]
[WhiteElo "1968"]
[BlackElo "1928"]
[Annotator "NA RC"]
[PlyCount "105"]
[EventDate "2024.02.22"]
[EventType "team-tourn"]
[EventCountry "POL"]
[SourceTitle "playchess.com"]
[Source "ChessBase"]
[SourceQuality "1"]
[TimeControl "900+5"]

1. d4 {[%emt 0:00:01]} Nf6 {[%emt 0:00:38]} 2. Nf3 {[%emt 0:00:04]} d5 {[%emt 0:00:01]} 3. c4 {[%emt 0:00:05]} c6 {[%emt 0:00:02]} 4. g3 {[%emt 0:00:08]} Bf5 {[%emt 0:00:47]} 5. Nc3 {[%emt 0:00:02]} e6 {[%emt 0:00:02]} 6. Nh4 {[%emt 0:00:01]} Bg6 {[%emt 0:00:25]} 7. Qb3 {[%emt 0:00:55]} Qb6 {[%emt 0:01:08]} 8. Nxg6 {[%emt 0:00:02]} hxg6 {[%emt 0:00:04]} 9. c5 {[%emt 0:00:01]} Qxb3 {[%emt 0:00:28]} 10. axb3 {[%emt 0:00:01]} Nbd7 {[%emt 0:00:06]} 11. b4 {[%emt 0:00:06]} e5 {[%emt 0:01:06]} 12. e3 {[%emt 0:00:16]} e4 {[%emt 0:01:03]} 13. b5 {[%emt 0:00:27]} Kd8 {[%emt 0:00:43]} 14. bxc6 {[%emt 0:01:56]} bxc6 {[%emt 0:00:03]} 15. b4 {[%emt 0:00:09]} Be7 {[%emt 0:01:37]} 16. b5 {[%emt 0:00:02]} Kc7 {[%emt 0:00:34]} 17. bxc6 {[%emt 0:03:57]} Nb8 {[%emt 0:03:28]} 18. Rxa7+ {[%emt 0:03:36]} Rxa7 {[%emt 0:00:22]} 19. Nb5+ {[%emt 0:00:02]} Kxc6 {[%emt 0:00:04]} 20. Nxa7+ {[%emt 0:00:01]} Kb7 {[%emt 0:00:06]} 21. Nb5 {[%emt 0:00:02]} Nc6 {[%emt 0:00:22]} 22. Bb2 {[%emt 0:01:13]} Ra8 {[%emt 0:00:32]} 23. Nc3 {[%emt 0:00:07]} Bd8 {[%emt 0:00:39]} 24. Bb5 {[%emt 0:00:41]} Ba5 {[%emt 0:01:04]} 25. Kd2 {[%emt 0:00:25]} Ne8 {[%emt 0:00:22]} 26. Rb1 {[%emt 0:01:03]} Nc7 {[%emt 0:00:23]} 27. Be2 {[%emt 0:00:03]} Kc8 {[%emt 0:00:37]} 28. Kd1 {[%emt 0:00:34]} Rb8 {[%emt 0:00:16]} 29. Ba1 {[%emt 0:00:21]} Bb4 {[%emt 0:00:15]} 30. Na2 {[%emt 0:00:21]} Ra8 {[%emt 0:00:09]} 31. Nxb4 {[%emt 0:00:17]} Nxb4 {[%emt 0:00:05]} 32. Bc3 {[%emt 0:00:08]} Nd3 {[%emt 0:00:07]} 33. Bxd3 {[%emt 0:00:05]} exd3 {[%emt 0:00:01]} 34. Kd2 {[%emt 0:00:04]} Ra2+ {[%emt 0:00:04]} 35. Rb2 {[%emt 0:00:04]} Ra3 {[%emt 0:00:04]} 36. Kxd3 {[%emt 0:00:05]} Na6 {[%emt 0:00:02]} 37. Kc2 {[%emt 0:00:10]} Kc7 {[%emt 0:00:05]} 38. h4 {[%emt 0:00:10]} Nb8 {[%emt 0:00:04]} 39. Bb4 {[%emt 0:00:05]} Ra1 {[%emt 0:00:03]} 40. Kd2 {[%emt 0:00:13]} Rf1 {[%emt 0:00:03]} 41. Ba5+ {[%emt 0:00:06]} Kc8 {[%emt 0:00:01]} 42. Ke2 {[%emt 0:00:04]} Ra1 {[%emt 0:00:01]} 43. Bd2 {[%emt 0:00:03]} Nc6 {[%emt 0:00:03]} 44. f3 {[%emt 0:00:17]} Kc7 {[%emt 0:00:03]} 45. Rb3 {[%emt 0:00:02]} Ne7 {[%emt 0:00:06]} 46. e4 {[%emt 0:00:02]} f5 {[%emt 0:00:24]} 47. e5 {[%emt 0:00:03]} Nc6 {[%emt 0:00:05]} 48. Be3 {[%emt 0:00:12]} Ra2+ {[%emt 0:00:03]} 49. Kd3 {[%emt 0:00:03]} Rg2 {[%emt 0:00:03]} 50. Bf4 {[%emt 0:00:02]} Rf2 {[%emt 0:00:03]} 51. e6+ {[%emt 0:00:02]} Kd8 {[%emt 0:00:09]} 52. Ke3 {[%emt 0:00:02]} Rf1 {[%emt 0:00:11]} 53. Rb6 {[%emt 0:00:06]} 1-0

[Event "Polish University-ch Teams 2024"]
[Site "Lublin"]
[Date "2024.02.25"]
[Round "6.24"]
[White "Kaczmarska, Joanna"]
[Black "Sloniewska, Alicja"]
[Result "1-0"]
[ECO "A07"]
[WhiteElo "1870"]
[BlackElo "1685"]
[Annotator "NA RC"]
[PlyCount "95"]
[EventDate "2024.02.22"]
[EventType "team-tourn"]
[EventCountry "POL"]
[SourceTitle "playchess.com"]
[Source "ChessBase"]
[SourceQuality "1"]
[TimeControl "900+5"]

1. Nf3 {[%emt 0:01:19]} d5 {[%emt 0:00:15]} 2. g3 {[%emt 0:00:02]} Nf6 {[%emt 0:00:05]} 3. Bg2 {[%emt 0:00:01]} c6 {[%emt 0:00:06]} 4. O-O {[%emt 0:00:07]} Bf5 {[%emt 0:00:05]} 5. b3 {[%emt 0:00:59]} e6 {[%emt 0:00:03]} 6. Bb2 {[%emt 0:00:01]} Be7 {[%emt 0:00:13]} 7. d3 {[%emt 0:00:11]} Nbd7 {[%emt 0:00:08]} 8. Nbd2 {[%emt 0:00:01]} O-O {[%emt 0:00:07]} 9. Nh4 {[%emt 0:00:53]} Bg6 {[%emt 0:00:02]} 10. Nxg6 {[%emt 0:00:25]} hxg6 {[%emt 0:00:02]} 11. e4 {[%emt 0:00:06]} e5 {[%emt 0:01:11]} 12. f4 {[%emt 0:00:40]} Bc5+ {[%emt 0:00:56]} 13. Kh1 {[%emt 0:00:07]} exf4 {[%emt 0:01:51]} 14. e5 {[%emt 0:02:28]} Ne8 {[%emt 0:00:19]} 15. gxf4 {[%emt 0:00:05]} Nc7 {[%emt 0:00:14]} 16. d4 {[%emt 0:00:25]} Be7 {[%emt 0:00:06]} 17. c4 {[%emt 0:00:03]} Nb6 {[%emt 0:00:50]} 18. c5 {[%emt 0:00:40]} Nd7 {[%emt 0:00:02]} 19. Rc1 {[%emt 0:00:06]} Ne6 {[%emt 0:00:05]} 20. Bh3 {[%emt 0:00:26]} Rc8 {[%emt 0:00:39]} 21. Bxe6 {[%emt 0:00:26]} fxe6 {[%emt 0:00:02]} 22. Qg4 {[%emt 0:00:02]} Rf5 {[%emt 0:00:29]} 23. Qxg6 {[%emt 0:00:02]} Nf8 {[%emt 0:00:02]} 24. Qg4 {[%emt 0:00:03]} Qe8 {[%emt 0:00:12]} 25. Rg1 {[%emt 0:01:07]} Qf7 {[%emt 0:00:03]} 26. Rcf1 {[%emt 0:00:02]} Nh7 {[%emt 0:00:33]} 27. Bc1 {[%emt 0:00:59]} Rf8 {[%emt 0:00:18]} 28. Nf3 {[%emt 0:00:14]} b6 {[%emt 0:02:11]} 29. b4 {[%emt 0:01:35]} Kh8 {[%emt 0:00:45]} 30. Rg3 {[%emt 0:01:37]} Rg8 {[%emt 0:00:31]} 31. Rfg1 {[%emt 0:00:16]} b5 {[%emt 0:00:13]} 32. Rh3 {[%emt 0:01:17]} Bd8 {[%emt 0:01:15]} 33. Bd2 {[%emt 0:00:30]} Be7 {[%emt 0:00:04]} 34. Qg6 {[%emt 0:00:05]} Qxg6 {[%emt 0:00:25]} 35. Rxg6 {[%emt 0:00:01]} Rc8 {[%emt 0:00:46]} 36. Rxe6 {[%emt 0:00:06]} Rf7 {[%emt 0:00:14]} 37. Rg3 {[%emt 0:00:33]} Nf8 {[%emt 0:00:29]} 38. Rxe7 {[%emt 0:00:06]} Rxe7 {[%emt 0:00:02]} 39. f5 {[%emt 0:00:02]} Rf7 {[%emt 0:00:35]} 40. Nh4 {[%emt 0:00:04]} Re8 {[%emt 0:00:43]} 41. e6 {[%emt 0:00:03]} Nxe6 {[%emt 0:00:20]} 42. fxe6 {[%emt 0:00:07]} Rxe6 {[%emt 0:00:01]} 43. Ng6+ {[%emt 0:00:02]} Kg8 {[%emt 0:00:01]} 44. Ne5 {[%emt 0:00:05]} Rfe7 {[%emt 0:00:15]} 45. Bg5 {[%emt 0:00:09]} Re8 {[%emt 0:00:22]} 46. Ra3 {[%emt 0:00:01]} Ra8 {[%emt 0:00:06]} 47. Ra6 {[%emt 0:00:01]} Rg6 {[%emt 0:00:05]} 48. Nxg6 {[%emt 0:00:02]} 1-0